lending/lending_fUSD_20240621
["ID","MTS","AMOUNT","RATE_DAILY","PERIOD"]
[330090281,1718989917607,-1759.77,0.00026016,4]
[330090282,1718989917617,-500.0,0.00026016,4]
[330090283,1718989917627,-500.0,0.00026016,4]
[330090284,1718989917636,-562.58,0.00026016,4]
[330090285,1718989917646,-419.32,0.00026016,4]
[330090286,1718989917656,-1118.22,0.00026016,4]
[330090287,1718989917666,-500.0,0.00026016,4]
[330090288,1718989917676,-1073.61,0.00026016,4]
[330090289,1718989917686,-1028.37,0.00026016,4]
[330090290,1718989917696,-565.65,0.00026016,4]
[330090291,1718989917706,-1694.42,0.00026016,4]
[330090292,1718989917716,-538.43,0.00026016,4]
[330090293,1718989917726,-1124.0,0.00026016,4]
[330090294,1718989917735,-1310.65,0.00026016,4]
[330090295,1718989917744,-500.0,0.00026016,4]
[330090296,1718989917755,-1974.58,0.00026016,4]
[330090297,1718989917764,-1560.47,0.00026016,4]
[330090298,1718989917774,-1456.87,0.00026016,4]
[330090299,1718989917784,-479.76272352,0.00026016,4]
[330090300,1718989917794,-1350.6,0.00026016,4]
[330090301,1718989917804,-766.53,0.00026016,4]
[330090302,1718989917814,-209.58,0.00026016,4]
[330090303,1718989917823,-1549.35,0.00026016,4]
[330090304,1718989917833,-1457.49,0.00026016,4]
[330090305,1718989917842,-1276.6,0.00026016,4]
[330090306,1718989917852,-661.51,0.00026016,4]
[330090307,1718989917862,-616.1,0.00026016,4]
[330090308,1718989917871,-759.07,0.00026016,4]
[330090309,1718989917880,-1007.76,0.00026016,4]
[330090310,1718989917890,-558.75,0.00026016,4]
[330090311,1718989917900,-520.63,0.00026016,4]
[330090312,1718989917910,-500.0,0.00026016,4]
[330090313,1718989917920,-500.0,0.00026016,4]
[330090314,1718989917929,-750.4,0.00026016,4]
[330090315,1718989917940,-500.0,0.00026016,4]
[330090316,1718989917949,-500.0,0.00026016,4]
[330090317,1718989917960,-500.0,0.00026016,4]
[330090318,1718989917970,-500.0,0.00026016,4]
[330090319,1718989917983,-674.53,0.00026016,4]
[330090320,1718989917993,-919.98,0.00026016,4]
[330090321,1718989918003,-1723.58,0.00026016,4]
[330090322,1718989918013,-500.0,0.00026016,4]
[330090323,1718989918023,-572.44,0.00026016,4]
[330090324,1718989918033,-966.63,0.00026016,4]
[330090325,1718989918043,-500.0,0.00026016,4]
[330090326,1718989918053,-574.64,0.00026016,4]
[330090327,1718989918063,-551.74,0.00026016,4]
[330090328,1718989918073,-500.0,0.00026016,4]
[330090329,1718989918083,-853.88,0.00026016,4]
[330090330,1718989918093,-769.31,0.00026016,4]
[330090331,1718989918102,-2295.96,0.00026016,5]
[330090332,1718989918116,-500.0,0.00026016,4]
[330090333,1718989918126,-584.18,0.00026016,4]
[330090334,1718989918136,-754.91,0.00026016,4]
[330090335,1718989918147,-500.0,0.00026016,4]
[330090336,1718989918158,-920.79,0.00026016,4]
[330090337,1718989918168,-2478.71,0.00026016,4]
[330090338,1718989918177,-843.52,0.00026016,4]
[330090339,1718989918187,-667.94,0.00026016,4]
[330090340,1718989918200,-878.77,0.00026016,4]
[330090341,1718989918210,-151.0,0.00026016,7]
[330090342,1718989918220,-1915.42,0.00026016,4]
[330090343,1718989918230,-500.0,0.00026016,4]
[330090344,1718989918240,-1207.42,0.00026016,4]
[330090345,1718989918250,-500.0,0.00026016,4]
[330090346,1718989918260,-944.02,0.00026016,4]
[330090347,1718989918270,-1304.29,0.00026016,4]
[330090348,1718989918280,-500.0,0.00026016,4]
[330090349,1718989918290,-729.79,0.00026016,4]
[330090350,1718989918300,-1256.24,0.00026016,4]
[330090351,1718989918310,-1422.04,0.00026016,4]
[330090352,1718989918320,-656.57,0.00026016,4]
[330090353,1718989918329,-1852.92,0.00026016,4]
[330090354,1718989918339,-625.57,0.00026016,4]
[330090355,1718989918348,-666.91,0.00026016,4]
[330090356,1718989918358,-1499.6,0.00026016,4]
[330090357,1718989918367,-223.896674,0.00026016,7]
[330090358,1718989918377,-765.5,0.00026016,4]
[330090359,1718989918386,-500.0,0.00026016,4]
[330090360,1718989918396,-2424.04,0.00026016,4]
[330090361,1718989918406,-223.896682,0.00026016,7]
[330090362,1718989918416,-4987.88,0.00026016,4]
[330090363,1718989918425,-2211.22,0.00026016,4]
[330090364,1718989918435,-787.23,0.00026016,4]
[330090365,1718989918445,-915.87,0.00026016,4]
[330090366,1718989918455,-637.63,0.00026016,4]
[330090367,1718989918465,-1221.9,0.00026016,4]
[330090368,1718989918475,-1018.75,0.00026016,4]
[330090369,1718989918485,-501.59,0.00026016,4]
[330090370,1718989918494,-500.0,0.00026016,4]
[330090371,1718989918503,-869.8,0.00026016,4]
[330090372,1718989918513,-500.0,0.00026016,8]
[330090373,1718989918523,-748.62,0.00026016,4]
[330090374,1718989918533,-2336.91,0.00026016,4]
[330090375,1718989918543,-1361.85,0.00026016,4]
[330090376,1718989918553,-1018.85,0.00026016,4]
[330090377,1718989918562,-16289.33,0.00026016,4]
[330090378,1718989918572,-2349.59,0.00026016,4]
[330090379,1718989918583,-650.0,0.00026016,4]
[330090380,1718989918592,-500.0,0.00026016,4]
[330090381,1718989918602,-979.16,0.00026016,4]
[330090382,1718989918611,-772.03,0.00026016,4]
[330090383,1718989918621,-1085.42,0.00026016,4]
[330090384,1718989918630,-1856.06,0.00026016,4]
[330090385,1718989918640,-581.94,0.00026016,4]
[330090386,1718989918650,-1071.94,0.00026016,4]
[330090387,1718989918660,-500.0,0.00026016,4]
[330090388,1718989918670,-676.76,0.00026016,4]
[330090389,1718989918680,-1530.22,0.00026016,4]
[330090390,1718989918690,-500.0,0.00026016,4]
[330090391,1718989918699,-1352.93,0.00026016,4]
[330090392,1718989918708,-828.24,0.00026016,4]
[330090393,1718989918719,-758.24,0.00026016,4]
[330090394,1718989918730,-1938.16,0.00026016,4]
[330090395,1718989918740,-359.6,0.00026016,4]
[330090396,1718989918750,-500.0,0.00026016,4]
[330090397,1718989918761,-556.62,0.00026016,4]
[330090398,1718989918771,-2348.18,0.00026016,4]
[330090399,1718989918781,-2261.53,0.00026016,4]
[330090400,1718989918790,-500.0,0.00026016,4]
[330090401,1718989918800,-600.2,0.00026016,4]
[330090402,1718989918811,-200.0,0.00026016,7]
[330090403,1718989918821,-1091.2,0.00026016,4]
[330090404,1718989918830,-1100.71,0.00026016,4]
[330090405,1718989918841,-12938.97,0.00026016,4]
[330090406,1718989918852,-1965.19,0.00026016,4]
[330090407,1718989918863,-638.92,0.00026016,4]
[330090408,1718989918874,-635.23,0.00026016,4]
[330090409,1718989918883,-1762.14,0.00026016,4]
[330090410,1718989918893,-1859.99,0.00026016,4]
[330090411,1718989918902,-992.0,0.00026016,4]
[330090412,1718989918912,-656.75,0.00026016,4]
[330090413,1718989918922,-2222.41,0.00026016,4]
[330090414,1718989918932,-860.86,0.00026016,4]
[330090415,1718989918942,-1049.63,0.00026016,4]
[330090416,1718989918952,-672.47,0.00026016,4]
[330090417,1718989918961,-500.0,0.00026016,4]
[330090418,1718989918972,-3375.56,0.00026016,4]
[330090419,1718989918982,-2480.67,0.00026016,4]
[330090420,1718989918992,-652.86,0.00026016,4]
[330090421,1718989919007,-2569.55,0.00026016,4]
[330090422,1718989919016,-500.0,0.00026026,4]
[330090423,1718989919026,-1833.6,0.00026026,4]
[330090424,1718989919036,-1662.17,0.00026026,4]
[330090425,1718989919046,-1196.01,0.00026026,4]
[330090426,1718989919057,-1323.04,0.00026026,4]
[330090427,1718989919067,-1815.14,0.00026026,4]
[330090428,1718989919077,-1488.18,0.00026026,4]
[330090429,1718989919087,-657.08,0.00026026,4]
[330090430,1718989919098,-794.21,0.00026026,4]
[330090431,1718989919108,-2173.9,0.00026026,4]
[330090432,1718989919121,-1700.13,0.00026026,4]
[330090433,1718989919132,-703.12,0.00026026,4]
[330090434,1718989919143,-500.0,0.00026026,4]
[330090435,1718989919153,-1792.19,0.00026026,4]
[330090436,1718989919163,-645.07,0.00026026,4]
[330090437,1718989919172,-500.0,0.00026026,4]
[330090438,1718989919182,-500.0,0.00026026,4]
[330090439,1718989919193,-831.31,0.00026026,4]
[330090440,1718989919205,-1274.46,0.00026026,4]
[330090441,1718989919216,-500.0,0.00026026,4]
[330090442,1718989919227,-500.0,0.00026026,4]
[330090443,1718989919237,-1390.32,0.00026026,4]
[330090444,1718989919247,-2085.31,0.00026026,4]
[330090445,1718989919257,-2038.36,0.00026026,4]
[330090446,1718989919267,-500.0,0.00026026,4]
[330090447,1718989919276,-961.12,0.00026026,4]
[330090448,1718989919286,-875.07,0.00026026,4]
[330090449,1718989919297,-500.0,0.00026026,4]
[330090450,1718989919307,-727.93,0.00026026,4]
[330090451,1718989919317,-1432.85,0.00026026,4]
[330090452,1718989919327,-1981.72,0.00026026,4]
[330090453,1718989919337,-500.0,0.00026026,4]
[330090454,1718989919346,-1176.2,0.00026026,4]
[330090455,1718989919356,-500.0,0.00026026,4]
[330090456,1718989919366,-1836.11,0.00026026,4]
[330090457,1718989919376,-1666.62,0.00026026,4]
[330090458,1718989919385,-1088.29,0.00026026,4]
[330090459,1718989919395,-500.0,0.00026026,4]
[330090460,1718989919404,-500.0,0.00026026,4]
[330090461,1718989919414,-500.0,0.00026026,4]
[330090462,1718989919423,-1712.42,0.00026026,4]
[330090463,1718989919433,-864.04,0.00026026,4]
[330090464,1718989919444,-1441.44,0.00026026,4]
[330090465,1718989919455,-500.0,0.00026026,4]
[330090466,1718989919466,-664.38,0.00026026,4]
[330090467,1718989919475,-914.89,0.00026026,4]
[330090468,1718989919485,-1656.03,0.00026026,4]
[330090469,1718989919496,-2699.53,0.00026026,4]
[330090470,1718989919848,-1310.25,0.00026026,4]
[330090471,1718989919862,-4009.92,0.00026026,4]
[330090472,1718989919872,-1193.59,0.00026026,4]
[330090473,1718989919882,-500.0,0.00026027,3]
[330090474,1718989919893,-500.0,0.00026027,4]
[330090475,1718989919903,-710.94,0.00026027,4]
[330090476,1718989919914,-500.0,0.00026027,4]
[330090477,1718989919924,-797.24,0.00026027,4]
[330090478,1718989919934,-617.5,0.00026027,4]
[330090479,1718989919944,-500.0,0.00026027,4]
[330090480,1718989919954,-500.0,0.00026027,4]
[330090481,1718989919963,-798.04,0.00026027,4]
[330090482,1718989919973,-735.75,0.00026027,4]
[330090483,1718989919983,-500.0,0.00026027,4]
[330090484,1718989919993,-500.0,0.00026027,4]
[330090485,1718989920002,-754.93,0.00026027,4]
[330090486,1718989920013,-595.79,0.00026027,4]
[330090487,1718989920023,-738.1,0.00026027,4]
[330090488,1718989920034,-1205.55,0.00026027,4]
[330090489,1718989920044,-500.0,0.00026027,2]
[330090490,1718989920054,-500.0,0.00026027,4]
[330090491,1718989920064,-522.35,0.00026027,4]
[330090492,1718989920074,-985.93,0.00026027,4]
[330090493,1718989920084,-362.64161012,0.00026027,4]
[330090494,1718989920094,-668.33,0.00026027,4]
[330090495,1718989920104,-548.21,0.00026027,4]
[330090496,1718989920114,-679.56,0.00026027,4]
[330090497,1718989920128,-500.0,0.00026027,4]
[330090498,1718989920138,-500.0,0.00026027,4]
[330090499,1718989920149,-780.77,0.00026027,4]
[330090500,1718989920159,-582.75,0.00026027,4]
[330090501,1718989920169,-500.0,0.00026027,4]
[330090502,1718989920178,-500.0,0.00026027,4]
[330090503,1718989920189,-584.71,0.00026027,4]
[330090504,1718989920202,-563.5,0.00026027,4]
[330090505,1718989920212,-1042.2,0.00026027,4]
[330090506,1718989920222,-588.19,0.00026027,4]
[330090507,1718989920232,-687.44,0.00026027,4]
[330090508,1718989920243,-811.36,0.00026027,4]
[330090509,1718989920253,-717.66,0.00026027,4]
[330090510,1718989920263,-621.56,0.00026027,4]
[330090511,1718989920273,-531.24,0.00026027,4]
[330090512,1718989920284,-500.0,0.00026027,4]
[330090513,1718989920295,-1201.37,0.00026027,4]
[330090514,1718989920305,-500.0,0.00026027,4]
[330090515,1718989920316,-522.9,0.00026027,4]
[330090516,1718989920327,-742.2,0.00026027,4]
[330090517,1718989920338,-500.0,0.00026027,4]
[330090518,1718989920348,-1192.22,0.00026027,4]
[330090519,1718989920358,-500.0,0.00026027,4]
[330090520,1718989920369,-938.16,0.00026027,4]
[330090521,1718989920379,-500.0,0.00026027,4]
[330090522,1718989920388,-1372.38,0.00026027,4]
[330090523,1718989920398,-500.0,0.00026027,4]
[330090524,1718989920408,-624.64,0.00026027,4]
[330090525,1718989920418,-1457.99,0.00026027,4]
[330090526,1718989920428,-511.55,0.00026027,4]
[330090527,1718989920438,-595.44,0.00026027,4]
[330090528,1718989920447,-598.79338058,0.00026027,4]
[330090529,1718989920457,-963.23,0.00026027,4]
[330090530,1718989920467,-759.23,0.00026027,4]
[330090531,1718989920477,-1020.76,0.00026027,4]
[330090532,1718989920487,-209.66371083,0.00026027,4]
[330090533,1718989920497,-1064.78,0.00026027,4]
[330090534,1718989920507,-873.22,0.00026027,4]
[330090535,1718989920517,-733.93,0.00026027,4]
[330090536,1718989920527,-200.68244551,0.00026027,4]
[330090537,1718989920539,-2686.69,0.00026027,4]
[330090538,1718989920549,-1011.28,0.00026027,4]
[330090539,1718989920560,-852.94,0.00026027,4]
[330090540,1718989920569,-554.48,0.00026027,4]
[330090541,1718989920579,-207.92,0.00026027,4]
[330090542,1718989920589,-500.0,0.00026027,4]
[330090543,1718989920599,-500.0,0.00026027,4]
[330090544,1718989920610,-397.48,0.00026027,4]
[330090545,1718989920619,-768.74,0.00026027,4]
[330090546,1718989920631,-1467.03,0.00026027,4]
[330090547,1718989920641,-1066.65,0.00026027,4]
[330090548,1718989920651,-500.0,0.00026027,4]
[330090549,1718989920661,-735.92,0.00026027,4]
[330090550,1718989920671,-899.57,0.00026027,4]
[330090551,1718989920683,-1342.26,0.00026027,4]
[330090552,1718989920692,-500.0,0.00026027,4]
[330090553,1718989920702,-585.36,0.00026027,4]
[330090554,1718989920712,-509.69,0.00026027,4]
[330090555,1718989920721,-667.28,0.00026027,4]
[330090556,1718989920731,-500.0,0.00026027,4]
[330090557,1718989920740,-2179.3,0.00026027,4]
[330090558,1718989920750,-906.35,0.00026027,4]
[330090559,1718989920759,-858.28,0.00026027,4]
[330090560,1718989920768,-559.84,0.00026027,4]
[330090561,1718989920778,-1415.8,0.00026027,4]
[330090562,1718989920788,-1930.31,0.00026027,4]
[330090563,1718989920797,-1505.14,0.00026027,4]
[330090564,1718989920807,-859.86,0.00026027,4]
[330090565,1718989920816,-500.0,0.00026027,4]
[330090566,1718989920826,-642.24,0.00026027,4]
[330090567,1718989920836,-1397.1,0.00026027,4]
[330090568,1718989920845,-602.59,0.00026027,4]
[330090569,1718989920854,-570.91,0.00026027,4]
[330090570,1718989920866,-5000.0,0.00026027,2]
[330090571,1718989920876,-5000.0,0.00026027,2]
[330090572,1718989920886,-1091.31466521,0.00026027,2]
[330090573,1718989920896,-500.0,0.00026027,4]
[330090574,1718989920906,-669.19,0.00026027,4]
[330090575,1718989920916,-1901.91,0.00026027,4]
[330090576,1718989920925,-1273.57,0.00026027,4]
[330090577,1718989920935,-500.0,0.00026027,4]
[330090578,1718989920944,-963.28,0.00026027,4]
[330090579,1718989920955,-532.82,0.00026027,4]
[330090580,1718989920964,-471.07659291,0.00026027,4]
[330090581,1718989920974,-2148.29,0.00026027,4]
[330090582,1718989920983,-904.13,0.00026027,4]
[330090583,1718989920993,-1923.19,0.00026027,4]
[330090584,1718989921003,-1655.82,0.00026027,4]
[330090585,1718989921012,-500.0,0.00026027,4]
[330090586,1718989921022,-590.93,0.00026027,4]
[330090587,1718989921031,-511.56,0.00026027,4]
[330090588,1718989921041,-1612.01,0.00026027,4]
[330090589,1718989921050,-2137.42,0.00026027,4]
[330090590,1718989921059,-573.05,0.00026027,4]
[330090591,1718989921069,-3053.94,0.00026027,4]
[330090592,1718989921078,-395.52509238,0.00026027,4]
[330090593,1718989921088,-639.37,0.00026027,4]
[330090594,1718989921098,-682.46,0.00026027,4]
[330090595,1718989921110,-2243.82,0.00026027,4]
[330090596,1718989921120,-1600.73,0.00026027,4]
[330090597,1718989921129,-696.06,0.00026027,4]
[330090598,1718989921139,-500.0,0.00026027,4]
[330090599,1718989921149,-1542.7,0.00026027,4]
[330090600,1718989921159,-1105.98,0.00026027,4]
[330090601,1718989921169,-1549.93,0.00026027,4]
[330090602,1718989921179,-2659.75,0.00026027,4]
[330090603,1718989921192,-833.57,0.00026027,4]
[330090604,1718989921201,-264.83057696,0.00026027,4]
[330090605,1718989921211,-1158.3,0.00026027,4]
[330090606,1718989921220,-533.64,0.00026027,4]
[330090607,1718989921231,-833.78,0.00026027,4]
[330090608,1718989921241,-685.86,0.00026027,4]
[330090609,1718989921251,-1289.2,0.00026027,4]
[330090610,1718989921262,-1090.97,0.00026027,4]
[330090611,1718989921272,-599.47,0.00026027,4]
[330090612,1718989921282,-2819.08,0.00026027,4]
[330090613,1718989921293,-7009.44,0.00026027,4]
[330090614,1718989921303,-591.52,0.00026027,4]
[330090615,1718989921316,-1505.93,0.00026027,4]
[330090616,1718989921332,-824.93,0.00026027,4]
[330090617,1718989921353,-500.0,0.00026027,4]
[330090618,1718989921362,-3331.02,0.00026027,4]
[330090619,1718989921372,-1405.37,0.00026027,4]
[330090620,1718989921382,-5922.66,0.00026027,4]
[330090621,1718989921392,-905.75,0.00026027,4]
[330090622,1718989921401,-6608.91,0.00026027,4]
[330090623,1718989921411,-580.05,0.00026027,4]
[330090624,1718989921420,-19704.08,0.00026027,6]
[330090625,1718989921430,-540.71,0.00026027,4]
[330090626,1718989921441,-838.13,0.00026027,4]
[330090627,1718989921450,-500.0,0.00026027,4]
[330090628,1718989921460,-823.35,0.00026027,4]
[330090629,1718989921470,-535.25,0.00026027,4]
[330090630,1718989921479,-887.04,0.00026027,4]
[330090631,1718989921489,-1378.35,0.00026027,4]
[330090632,1718989921498,-500.0,0.00026027,4]
[330090633,1718989921507,-500.0,0.00026027,4]
[330090634,1718989921517,-1812.66,0.00026027,4]
[330090635,1718989921526,-1256.45,0.00026027,4]
[330090636,1718989921535,-647.36,0.00026027,4]
[330090637,1718989921545,-772.11,0.00026027,4]
[330090638,1718989921554,-939.73,0.00026027,4]
[330090639,1718989921563,-1304.96,0.00026027,4]
[330090640,1718989921573,-1184.79,0.00026027,4]
[330090641,1718989921583,-1482.67,0.00026027,4]
[330090642,1718989921592,-1172.14,0.00026027,4]
[330090643,1718989921602,-439.03,0.00026027,4]
[330090644,1718989921611,-1060.14,0.00026027,4]
[330090645,1718989921621,-3886.53,0.00026027,4]
[330090646,1718989921631,-654.99,0.00026027,4]
[330090647,1718989921640,-1021.14,0.00026027,4]
[330090648,1718989921650,-25963.77,0.00026027,4]
[330090649,1718989921659,-1656.59,0.00026027,4]
[330090650,1718989921669,-1438.15,0.00026027,4]
[330090651,1718989921678,-500.0,0.00026027,4]
[330090652,1718989921688,-1558.07,0.00026027,4]
[330090653,1718989921698,-500.0,0.00026027,4]
[330090654,1718989921707,-1206.43,0.00026027,4]
[330090655,1718989921717,-1774.24,0.00026027,4]
[330090656,1718989921727,-1123.84,0.00026027,4]
[330090657,1718989921737,-1807.53,0.00026027,4]
[330090658,1718989921747,-1718.78,0.00026027,4]
[330090659,1718989921756,-736.5,0.00026027,4]
[330090660,1718989921765,-150.0,0.00026156,3]
[330090661,1718989921774,-6421.9,0.00026186,7]
[330090662,1718989921784,-6421.9,0.00026186,7]
[330090663,1718989921794,-4089.57,0.000262,2]
[330090664,1718989921803,-1356.86,0.00026277,4]
[330090665,1718989921814,-3062.37,0.00026277,4]
[330090666,1718989921824,-1533.09,0.00026277,4]
[330090667,1718989921833,-5990.91,0.00026277,4]
[330090668,1718989921844,-1110.17,0.00026277,4]
[330090669,1718989921853,-11925.19,0.00026277,4]
[330090670,1718989921863,-3672.46,0.00026277,4]
[330090671,1718989921873,-6178.73,0.00026277,4]
[330090672,1718989921883,-1501.96,0.00026277,4]
[330090673,1718989921893,-3518.52,0.00026277,4]
[330090674,1718989921902,-1989.12,0.00026289,4]
[330090675,1718989921912,-2398.6,0.00026289,4]
[330090676,1718989921922,-42723.34,0.00026289,4]
[330090677,1718989921931,-1860.96,0.00026289,4]
[330090678,1718989921944,-7757.24,0.00026289,4]
[330090679,1718989921954,-2969.44,0.00026289,4]
[330090680,1718989921964,-500.0,0.00026289,2]
[330090681,1718989921974,-2619.5,0.00026289,4]
[330090682,1718989921984,-4343.94,0.00026289,4]
[330090683,1718989921994,-946.76,0.00026289,4]
[330090684,1718989922003,-1067.33,0.00026289,4]
[330090685,1718989922014,-11069.13,0.00026289,4]
[330090686,1718989922023,-2041.56,0.00026289,4]
[330090687,1718989922033,-2855.93,0.00026289,4]
[330090688,1718989922042,-871.25,0.0002629,4]
[330090689,1718989922051,-2040.63,0.0002629,4]
[330090690,1718989922061,-1063.28,0.0002629,4]
[330090691,1718989922070,-2566.45,0.0002629,4]
[330090692,1718989922080,-1747.85,0.0002629,4]
[330090693,1718989922090,-574.66,0.0002629,4]
[330090694,1718989922099,-1705.93,0.0002629,4]
[330090695,1718989922110,-500.0,0.0002629,4]
[330090696,1718989922123,-790.72,0.0002629,4]
[330090697,1718989922134,-614.11,0.0002629,4]
[330090698,1718989922144,-1508.15,0.0002629,4]
[330090699,1718989922155,-500.0,0.0002629,4]
[330090700,1718989922166,-655.33,0.0002629,4]
[330090701,1718989922176,-900.76,0.0002629,4]
[330090702,1718989922188,-1711.8,0.0002629,4]
[330090703,1718989922202,-500.0,0.0002629,4]
[330090704,1718989922212,-500.0,0.0002629,4]
[330090705,1718989922221,-1259.32,0.0002629,4]
[330090706,1718989922231,-543.58,0.0002629,4]
[330090707,1718989922240,-1395.51,0.0002629,4]
[330090708,1718989922250,-500.0,0.0002629,4]
[330090709,1718989922260,-779.08,0.0002629,4]
[330090710,1718989922270,-882.56,0.0002629,4]
[330090711,1718989922280,-1115.61,0.0002629,4]
[330090712,1718989922290,-500.0,0.0002629,4]
[330090713,1718989922299,-500.0,0.0002629,4]
[330090714,1718989922414,-500.0,0.0002629,4]
[330090715,1718989922424,-500.0,0.0002629,4]
[330090716,1718989922433,-1759.77,0.0002629,4]
[330090717,1718989922443,-500.0,0.0002629,4]
[330090718,1718989922453,-500.0,0.0002629,4]
[330090719,1718989922462,-562.58,0.0002629,4]
[330090720,1718989922472,-1118.22,0.0002629,4]
[330090721,1718989922482,-500.0,0.0002629,4]
[330090722,1718989922491,-1073.61,0.0002629,4]
[330090723,1718989922501,-1028.37,0.0002629,4]
[330090724,1718989922510,-565.65,0.0002629,4]
[330090725,1718989922521,-1694.42,0.0002629,4]
[330090726,1718989922532,-538.43,0.0002629,4]
[330090727,1718989922541,-1124.0,0.0002629,4]
[330090728,1718989922551,-1310.65,0.0002629,4]
[330090729,1718989922560,-500.0,0.0002629,4]
[330090730,1718989922570,-1974.58,0.0002629,4]
[330090731,1718989922580,-1560.47,0.0002629,4]
[330090732,1718989922589,-1456.87,0.0002629,4]
[330090733,1718989922599,-1350.6,0.0002629,4]
[330090734,1718989922610,-766.53,0.0002629,4]
[330090735,1718989922620,-209.58,0.0002629,4]
[330090736,1718989922630,-1549.35,0.0002629,4]
[330090737,1718989922640,-1457.49,0.0002629,4]
[330090738,1718989922650,-1276.6,0.0002629,4]
[330090739,1718989922660,-661.51,0.0002629,4]
[330090740,1718989922670,-616.1,0.0002629,4]
[330090741,1718989922679,-759.07,0.0002629,4]
[330090742,1718989922690,-1007.76,0.0002629,4]
[330090743,1718989922699,-558.75,0.0002629,4]
[330090744,1718989922708,-520.63,0.0002629,4]
[330090745,1718989922718,-500.0,0.0002629,4]
[330090746,1718989922727,-500.0,0.0002629,4]
[330090747,1718989922738,-750.4,0.0002629,4]
[330090748,1718989922747,-513.6,0.0002629,4]
[330090749,1718989922756,-500.0,0.0002629,4]
[330090750,1718989922766,-500.0,0.0002629,4]
[330090751,1718989922776,-500.0,0.0002629,4]
[330090752,1718989922785,-674.53,0.0002629,4]
[330090753,1718989922795,-919.98,0.0002629,4]
[330090754,1718989922804,-1723.58,0.0002629,4]
[330090755,1718989922813,-500.0,0.0002629,4]
[330090756,1718989922823,-572.44,0.0002629,4]
[330090757,1718989922832,-966.63,0.0002629,4]
[330090758,1718989922842,-500.0,0.0002629,4]
[330090759,1718989922852,-574.64,0.0002629,4]
[330090760,1718989922861,-551.74,0.0002629,4]
[330090761,1718989922870,-500.0,0.0002629,4]
[330090762,1718989922879,-853.88,0.0002629,4]
[330090763,1718989922888,-769.31,0.0002629,4]
[330090764,1718989922898,-2295.96,0.0002629,5]
[330090765,1718989922907,-500.0,0.0002629,4]
[330090766,1718989922916,-584.18,0.0002629,4]
[330090767,1718989922926,-754.91,0.0002629,4]
[330090768,1718989922937,-500.0,0.0002629,4]
[330090769,1718989922947,-920.79,0.0002629,4]
[330090770,1718989922956,-2478.71,0.0002629,4]
[330090771,1718989922966,-843.52,0.0002629,4]
[330090772,1718989922975,-667.94,0.0002629,4]
[330090773,1718989922984,-878.77,0.0002629,4]
[330090774,1718989922993,-1915.42,0.0002629,4]
[330090775,1718989923003,-500.0,0.0002629,4]
[330090776,1718989923012,-1207.42,0.0002629,4]
[330090777,1718989923022,-500.0,0.0002629,4]
[330090778,1718989923031,-944.02,0.0002629,4]
[330090779,1718989923040,-1304.29,0.0002629,4]
[330090780,1718989923050,-500.0,0.0002629,4]